fUSD/lending_fUSD_20251225
["ID","MTS","AMOUNT","RATE_DAILY","PERIOD"]
[399716908,1766633440493,-447.71,0.00013699,2]
[399716909,1766633440503,-200.0,0.00013699,2]
[399716910,1766633440512,-613.33,0.00013699,2]
[399716911,1766633440522,-8243.68,0.00013699,2]
[399716912,1766633440532,-9999.99,0.00013699,2]
[399716913,1766633440546,-9999.99,0.00013699,2]
[399716914,1766633440556,-499.99,0.00013699,2]
[399716915,1766633440566,-567.09,0.00013699,2]
[399716916,1766633440576,-9999.99,0.00013699,2]
[399716917,1766633440587,-5431.02,0.00013699,2]
[399716918,1766633440597,-4999.99,0.00013699,2]
[399716919,1766633440607,-150.99,0.00013699,2]
[399716920,1766633440618,-7711.25,0.00013699,2]
[399716921,1766633440627,-150.99,0.00013699,2]
[399716922,1766633440637,-309.16,0.00013699,2]
[399716923,1766633440647,-999.99,0.00013699,2]
[399716924,1766633440658,-406.16,0.00013699,2]
[399716925,1766633440668,-299.99,0.00013699,2]
[399716926,1766633440678,-1404.07908155,0.00013716,2]
[399716927,1766633440688,-35174.82171994,0.00013727,2]
[399716928,1766633440697,-452.95844891,0.0001385,2]
[399716929,1766633440707,-1600.0,0.0001385,2]
[399716930,1766633440723,-500.0,0.0001396,2]
[399716931,1766633440734,-1862.4,0.00013972,2]
[399716932,1766633440744,-99523.95842475,0.0001399,2]
[399716933,1766633440755,-566.0,0.00014061,2]
[399716934,1766633440765,-1143.0,0.00014089,2]
[399716935,1766633440775,-1755.0,0.00014117,2]
[399716936,1766633440786,-1862.4,0.00014246,2]
[399716937,1766633440796,-166.0,0.000143,2]
[399716938,1766633440806,-1404.07908155,0.00014353,2]
[399716939,1766633440816,-10282.93147683,0.0001439,2]
[399716940,1766633440826,-600.0,0.00014417,2]
[399716941,1766633440836,-351.76,0.00014417,2]
[399716942,1766633440846,-384.09,0.00014493,2]
[399716943,1766633440856,-10000.0,0.0001451,2]
[399716944,1766633440866,-1862.4,0.0001452,2]
[399716945,1766633440876,-500.0,0.0001457,2]
[399716946,1766633440886,-500.0,0.0001457,2]
[399716947,1766633440897,-681.92,0.0001457,2]
[399716948,1766633440915,-500.0,0.0001457,2]
[399716949,1766633440927,-433.0,0.00014613,2]
[399716950,1766633440937,-774.91122039,0.0001463,2]
[399716951,1766633440947,-1862.4,0.00014794,2]
[399716952,1766633440959,-681.92,0.00014806,2]
[399716953,1766633440979,-180.11,0.00014816,2]
[399716954,1766633440998,-587.0,0.00014863,2]
[399716955,1766633441008,-587.0,0.00014863,2]
[399716956,1766633441018,-331.0,0.00014863,2]
[399716957,1766633441028,-1000.0,0.00014884,2]
[399716958,1766633441039,-2351.0,0.00014934,2]
[399716959,1766633441050,-2351.0,0.00014981,2]
[399716960,1766633441060,-1404.07908155,0.0001499,2]
[399716961,1766633441071,-1564.91483408,0.00015,14]
[399716962,1766633441082,-1862.4,0.00015068,2]
[399716963,1766633441093,-890.89,0.00015068,2]
[399716964,1766633441103,-151.0,0.00015071,2]
[399716965,1766633441114,-500.0,0.00015096,2]
[399716966,1766633441124,-500.0,0.00015096,2]
[399716967,1766633441134,-151.0,0.0001519,2]
[399716968,1766633441145,-151.0,0.00015202,2]
[399716969,1766633441155,-151.0,0.00015202,2]
[399716970,1766633441166,-169.92268481,0.0001527,2]
[399716971,1766633441176,-32796.07991401,0.00015272,2]
[399716972,1766633441187,-500.0,0.00015296,2]
[399716973,1766633441197,-9632.43,0.0001531,2]
[399716974,1766633441207,-5167.62,0.0001531,2]
[399716975,1766633441217,-23338.72,0.0001531,2]
[399716976,1766633441227,-9999.99,0.0001531,2]
[399716977,1766633441237,-1862.4,0.00015342,2]
[399716978,1766633441247,-1600.0,0.00015389,2]
[399716979,1766633441258,-500.0,0.000154,2]
[399716980,1766633441268,-500.0,0.0001557,2]
[399716981,1766633441278,-1862.4,0.00015616,2]
[399716982,1766633441288,-1404.07908155,0.00015627,2]
[399716983,1766633441298,-200.0,0.0001566,2]
[399716984,1766633441308,-169.44,0.000158,2]
[399716985,1766633441319,-500.0,0.00015844,2]
[399716986,1766633441329,-1862.4,0.0001589,2]
[399716987,1766633441339,-736.0,0.00015897,2]
[399716988,1766633441349,-151.0,0.00015997,2]
[399716989,1766633441359,-6775.69878296,0.00016,2]
[399716990,1766633441369,-215577.89603448,0.00016,2]
[399716991,1766633441379,-611.79223266,0.00016,2]
[399716992,1766633441389,-5528.98,0.00016116,2]
[399716993,1766633441400,-222.61399504,0.00016118,2]
[399716994,1766633441409,-1862.4,0.00016164,2]
[399716995,1766633441419,-10000.00898991,0.000162,5]
[399716996,1766633441429,-1404.07908155,0.00016263,2]
[399716997,1766633441439,-250.0,0.00016309,2]
[399716998,1766633441449,-810.0,0.00016311,2]
[399716999,1766633441459,-823.0,0.00016311,2]
[399717000,1766633441469,-228.0,0.000164,2]
[399717001,1766633441479,-319.0,0.000164,2]
[399717002,1766633441489,-182.0,0.000164,2]
[399717003,1766633441500,-184.24951816,0.000164,2]
[399717004,1766633441510,-2043.0,0.00016427,2]
[399717005,1766633441521,-1027.51657061,0.00016437,5]
[399717006,1766633441532,-1094.23460436,0.00016437,5]
[399717007,1766633441546,-1060.87558748,0.00016437,5]
[399717008,1766633441556,-183.47036323,0.00016437,5]
[399717009,1766633441566,-681.92,0.00016437,2]
[399717010,1766633441576,-1862.4,0.00016438,2]
[399717011,1766633441587,-3292.0,0.00016438,2]
[399717012,1766633441597,-626.05,0.00016438,2]
[399717013,1766633441607,-890.89,0.00016438,2]
[399717014,1766633441619,-800.0,0.00016438,2]
[399717015,1766633441628,-500.0,0.00016537,2]
[399717016,1766633441638,-519.34175098,0.00016537,2]
[399717017,1766633441648,-1000.0,0.00016538,2]
[399717018,1766633441658,-1862.4,0.00016712,2]
[399717019,1766633441668,-676.65137989,0.000169,2]
[399717020,1766633441678,-446.91265262,0.000169,2]
[399717021,1766633441688,-160.26345252,0.000169,2]
[399717022,1766633441697,-1404.07908155,0.000169,2]
[399717023,1766633441708,-20583.86854443,0.000169,2]
[399717024,1766633441718,-193.82133822,0.000169,2]
[399717025,1766633441728,-1600.0,0.00016927,2]
[399717026,1766633441739,-279.21023114,0.00016936,2]
[399717027,1766633441749,-500.59611771,0.00016973,2]
[399717028,1766633441759,-500.88003049,0.00016973,2]
[399717029,1766633441770,-500.95883019,0.00016973,2]
[399717030,1766633441781,-500.0,0.00016973,2]
[399717031,1766633441792,-500.0,0.00016973,2]
[399717032,1766633441802,-174.86770557,0.00016973,2]
[399717033,1766633441813,-500.0,0.00016973,2]
[399717034,1766633441823,-500.0,0.00016973,2]
[399717035,1766633441833,-164.91223401,0.00016973,2]
[399717036,1766633441844,-500.0,0.00016973,2]
[399717037,1766633441854,-162.14010423,0.00016973,2]
[399717038,1766633441867,-538.67026127,0.00016973,2]
[399717039,1766633441877,-500.0,0.00016973,2]
[399717040,1766633441888,-500.0,0.00016973,2]
[399717041,1766633441901,-500.0,0.00016973,2]
[399717042,1766633441915,-500.57482275,0.00016973,2]
[399717043,1766633441929,-500.0,0.00016973,2]
[399717044,1766633441939,-254.3031995,0.00016973,2]
[399717045,1766633441950,-500.0,0.00016973,2]
[399717046,1766633441961,-500.0,0.00016973,2]
[399717047,1766633441971,-500.0,0.00016973,2]
[399717048,1766633441982,-318.77837914,0.00016973,2]
[399717049,1766633441992,-500.34321322,0.00016973,2]
[399717050,1766633442002,-150.0,0.00016973,2]
[399717051,1766633442013,-150.0,0.00016973,2]
[399717052,1766633442023,-1862.4,0.00016986,2]
[399717053,1766633442033,-500.0,0.00016986,2]
[399717054,1766633442043,-500.0,0.00016986,2]
[399717055,1766633442053,-500.0,0.00016986,2]
[399717056,1766633442063,-500.0,0.00016986,2]
[399717057,1766633442074,-200.78240058,0.0001699,2]
[399717058,1766633442084,-151.0,0.00016997,2]
[399717059,1766633442093,-300.0,0.00016999,2]
[399717060,1766633442103,-306.76265133,0.00016999,2]
[399717061,1766633442113,-666.0,0.00016999,2]
[399717062,1766633442123,-250.0,0.00017,2]
[399717063,1766633442134,-5461980.59193583,0.00017,2]
[399717064,1766633442396,-3011.61448657,0.00017,2]
[399717065,1766633442410,-252867.68441031,0.00017,2]
[399717066,1766633442423,-444.95430167,0.00017,2]
[399717067,1766633442587,-1210.30195013,0.000169,2]
[399717068,1766633442598,-1104.79456305,0.00017,2]
[399717071,1766633443186,-1.7e-07,0.00017,2]
[399717072,1766633443206,-7754871.07646503,0.00017,2]
[399717073,1766633443244,-842.4076005,0.00017,2]
[399717075,1766633444138,-417.36416171,0.00012442,2]
[399717076,1766633445856,-82.63583829,0.00012442,2]
[399717077,1766633445866,-500.0,0.00012442,2]
[399717078,1766633445876,-500.0,0.00012442,2]
[399717079,1766633445887,-500.0,0.00012442,2]
[399717080,1766633445898,-500.0,0.00012442,2]
[399717081,1766633445908,-500.0,0.00012442,2]
[399717082,1766633445919,-57.36416171,0.00012442,2]
[399717084,1766633539689,-8354.98108695,0.00012341,2]
[399717085,1766633539716,-10000.01,0.00012341,2]
[399717086,1766633539731,-10000.01,0.00012341,2]
[399717087,1766633539749,-10000.01,0.00012341,2]
[399717088,1766633541503,-4370.69444923,0.00012341,2]
[399717089,1766633541533,-300.0,0.00012342,2]
[399717090,1766633541563,-250.0,0.00012342,2]
[399717091,1766633541643,-158.62110154,0.00012342,2]
[399717092,1766633541684,-10000.01,0.00012342,2]
[399717093,1766633541765,-10000.01,0.00012342,2]
[399717094,1766633541949,-10000.01,0.00012342,2]
[399717095,1766633542081,-10000.01,0.00012342,2]
[399717096,1766633542236,-10000.01,0.00012342,2]
[399717097,1766633545927,183.47036323,0.00012847,3]
[399717098,1766633546010,1060.87558748,0.00012847,3]
[399717099,1766633556744,-4160.19896551,0.00012342,2]
[399717100,1766633556770,-1679.61206898,0.00012342,2]
[399717101,1766633556944,-4655.519074,0.00012342,2]
[399717103,1766633581547,300.0,0.00012342,2]
[399717104,1766633581646,150.0,0.00012342,2]
[399717105,1766633581951,238.971852,0.00012342,2]
[399717106,1766633581975,61.028148,0.00012342,2]
[399717107,1766633589320,1200.0,0.00012342,2]
[399717108,1766633600690,8738.981852,0.00012243,2]
[399717109,1766633600713,10000.01,0.00012243,2]
[399717110,1766633600736,10000.01,0.00012243,2]
[399717111,1766633600759,1107.53614963,0.00012243,2]
[399717112,1766633604352,1424.93800697,0.00012243,2]
[399717113,1766633605578,1597.77382672,0.00012333,2]
[399717114,1766633626959,1310.90515566,0.00012243,2]
[399717115,1766633632459,500.0,0.00012342,2]
[399717116,1766633649470,2701.0,6.092e-05,2]
[399717117,1766633649681,1357.85686102,6.412e-05,2]
[399717118,1766633649704,1343.14313898,6.412e-05,2]
[399717119,1766633649875,2701.0,6.733e-05,2]
[399717120,1766633649970,500.0,0.00012342,2]
[399717121,1766633650078,2701.0,7.054e-05,2]
[399717122,1766633650264,2701.0,7.374e-05,2]
[399717123,1766633651743,2701.0,7.695e-05,2]
[399717124,1766633651960,2701.0,8.016e-05,2]
[399717125,1766633652171,2701.0,8.336e-05,2]
[399717126,1766633652360,1897.01,8.657e-05,2]
[399717127,1766633652383,803.99,8.657e-05,2]
[399717128,1766633652551,2701.0,8.977e-05,2]
[399717129,1766633652763,2701.0,9.298e-05,2]
[399717130,1766633652946,2701.0,9.619e-05,2]
[399717131,1766633653150,1093.02,9.939e-05,2]
[399717132,1766633653174,1607.98,9.939e-05,2]
[399717133,1766633653371,2701.0,0.0001026,2]
[399717134,1766633653576,2701.0,0.00010581,2]
[399717135,1766633653777,2701.0,0.00010901,2]
[399717136,1766633654061,289.03,0.00011222,2]
[399717137,1766633654086,2411.97,0.00011222,2]
[399717138,1766633654467,2701.0,0.00011543,2]
[399717139,1766633654862,2701.0,0.00011863,2]
[399717140,1766633655069,2186.04,0.00012184,2]
[399717141,1766633655094,514.96,0.00012184,2]
[399717142,1766633692436,-415.1339909,0.00012342,2]
[399717143,1766633692463,-52.70527613,0.00012342,2]
[399717144,1766633692920,9485.05,0.00012155,2]
[399717145,1766633692943,10000.01,0.00012155,2]
[399717146,1766633692966,10000.01,0.00012155,2]
[399717147,1766633692989,10000.01,0.00012155,2]
[399717148,1766633693011,10000.01,0.00012155,2]
[399717149,1766633693034,10000.01,0.00012155,2]
[399717150,1766633693057,10000.01,0.00012155,2]
[399717151,1766633693080,10000.01,0.00012155,2]
[399717152,1766633695621,-154.38211696,0.00012155,2]
[399717153,1766633697159,-463.14635088,0.00012155,2]
[399717154,1766633699297,-206.90531502,0.00012155,2]
[399717155,1766633701372,-300.0,0.00012154,2]
[399717156,1766633701397,-66.16165286,0.00012154,2]
[399717157,1766633704110,-233.83834714,0.00012154,2]
[399717158,1766633704133,-56.72939394,0.00012154,2]
[399717159,1766633707306,-197.89081002,0.00012154,2]
[399717160,1766633709885,-342.84837436,0.00012154,2]
[399717161,1766633710323,-602.53142168,0.00012154,2]
[399717162,1766633713342,-272.2805468,0.00012155,2]
[399717163,1766633714370,-386.98026882,0.00012155,2]
[399717165,1766633715807,-502.72372436,0.00012155,2]
[399717167,1766633719131,-300.0,0.00012155,2]
[399717168,1766633721764,-582.79154504,0.00012155,2]
[399717169,1766633725612,-293.44463635,0.00012155,2]
[399717170,1766633729011,-307.89379673,0.00012155,2]
[399717171,1766633731966,-363.10651645,0.00012155,2]
[399717172,1766633733546,-267.36563553,0.00012155,2]
[399717173,1766633734905,-8159.84216566,0.00012155,2]
[399717174,1766633735699,-307.37807078,0.00012155,2]
[399717175,1766633737637,-175.93951515,0.00012155,2]
[399717176,1766633737873,-824.64020453,0.00012155,2]
[399717177,1766633737899,-8350.72959094,0.00012155,2]
[399717178,1766633773661,614.625775,0.00012181,2]
[399717179,1766633827541,-160.79287812,0.00012243,2]
[399717180,1766633830075,-320.87010147,0.00012243,2]
[399717181,1766633834561,-288.90533939,0.00012243,2]
[399717182,1766633837888,-103.36845146,0.00012243,2]
[399717183,1766633837912,-246.91194644,0.00012243,2]
[399717184,1766633841252,-220.45658712,0.00012243,2]
[399717185,1766633844510,-297.26,0.00012243,2]
[399717186,1766633846670,-492.43574919,0.00012243,2]
[399717187,1766633848819,-169.30485527,0.00012243,2]
[399717188,1766633866290,5000.0,0.00012117,2]
[399717189,1766633946924,-150.0,0.00012241,2]
[399717190,1766633946955,-102.70404098,0.00012242,2]
[399717191,1766633961203,295.63,0.00011851,2]
[399717192,1766633963201,172.13511563,0.00012142,2]
[399717193,1766634006921,-252.51769995,0.00012241,2]
[399717194,1766634008874,-47.48230005,0.00012241,2]
[399717195,1766634008899,-323.12183804,0.00012241,2]
[399717196,1766634012761,-655.18876883,0.00012241,2]
[399717197,1766634014251,-200.0,0.00012241,2]
[399717198,1766634014588,3042.7493,0.00012219,2]
[399717199,1766634016361,-21.68939313,0.00012241,2]
[399717200,1766634016385,-138.47855602,0.00012241,2]
[399717201,1766634018514,-161.52144398,0.00012241,2]
[399717202,1766634018537,-138.47855602,0.00012242,2]
[399717203,1766634021409,-258.817403,0.00012242,2]
[399717204,1766634021433,-97.82555621,0.00012242,2]
[399717205,1766634023474,-362.80827377,0.00012242,2]
[399717206,1766634026041,-204.72190576,0.00012242,2]
[399717207,1766634027494,-234.68775036,0.00012242,2]
[399717208,1766634029546,-339.16664607,0.00012242,2]
[399717209,1766634033003,-277.73185187,0.00012242,2]
[399717210,1766634034561,-176.67626731,0.00012241,2]
[399717211,1766634037773,-202.62648438,0.00012241,2]
[399717212,1766634039696,-120.69724831,0.00012241,2]
[399717213,1766634039719,-162.93514486,0.00012241,2]
[399717214,1766634042340,-302.00611386,0.00012241,2]
[399717215,1766634044383,-35.05874128,0.00012241,2]
[399717216,1766634044406,-189.66162235,0.00012241,2]
[399717217,1766634044429,-64.18497576,0.00012241,2]
[399717218,1766634047045,-282.2031428,0.00012241,2]
[399717219,1766634051047,-153.61188144,0.00012241,2]
[399717220,1766634051075,-98.13133979,0.00012241,2]
[399717221,1766634056031,-186.58389147,0.00012241,2]
[399717222,1766634057226,-201.17741891,0.00012241,2]
[399717223,1766634058727,-14.10734983,0.00012241,2]
[399717224,1766634058752,-243.22392147,0.00012241,2]
[399717225,1766634060889,-256.77607853,0.00012241,2]
[399717226,1766634060912,-0.14889179,0.00012241,2]
[399717227,1766634062432,-217.60455001,0.00012241,2]
[399717228,1766634064596,-155.77863173,0.00012241,2]
[399717229,1766634068384,-126.46792647,0.00012241,2]
[399717230,1766634068412,-141.89968036,0.00012241,2]
[399717231,1766634070306,-188.27973739,0.00012241,2]
[399717232,1766634072264,-169.82058225,0.00012241,2]
[399717233,1766634072291,-141.89968036,0.00012241,2]
[399717234,1766634076056,1090.94,0.00011838,2]
[399717235,1766634111294,398.55558437,0.00012143,2]
[399717236,1766634111316,10000.01,0.00012143,2]
[399717237,1766634111338,10000.01,0.00012143,2]
[399717238,1766634111363,4466.17855691,0.00012143,2]
[399717239,1766634111384,4671.92855691,0.00012143,2]
[399717240,1766634111407,604.80949469,0.00012143,2]
[399717241,1766634112493,-20.41515809,0.00012241,2]
[399717242,1766634112519,-423.22805404,0.00012241,2]
[399717243,1766634114705,-76.77194596,0.00012241,2]
[399717244,1766634114732,-124.94628142,0.00012241,2]
[399717245,1766634117064,-236.19089789,0.00012241,2]
[399717246,1766634117087,-1.5444766,0.00012241,2]
[399717247,1766634121536,-242.26357046,0.00012241,2]
[399717248,1766634123896,883.0968,0.00012142,2]
[399717249,1766634124288,-300.0,0.0001224,2]
[399717250,1766634124311,-92.75244996,0.0001224,2]
[399717251,1766634126919,-57.24755004,0.0001224,2]
[399717252,1766634126944,-152.49514296,0.00012241,2]
[399717253,1766634129803,2449.8674,0.00012142,2]
[399717254,1766634130728,-103.69680998,0.00012241,2]
[399717255,1766634130758,-131.87945548,0.00012241,2]
[399717256,1766634132295,-279.48633976,0.00012241,2]
[399717257,1766634133683,-88.63420476,0.00012241,2]
[399717258,1766634133706,-175.91912486,0.00012241,2]
[399717259,1766634136850,-291.47211502,0.00012236,2]
[399717260,1766634139515,-340.30061707,0.00012236,2]
[399717261,1766634142112,-211.09466061,0.00012236,2]
[399717262,1766634143637,-224.38656483,0.00012236,2]
[399717263,1766634145052,-263.79702715,0.00012236,2]
[399717264,1766634148570,-267.90004059,0.00012236,2]
[399717265,1766634153039,-300.0,0.00012236,2]
[399717266,1766634156627,-166.67119007,0.00012236,2]
[399717267,1766634158177,-289.06394144,0.00012236,2]
[399717268,1766634160185,-145.31384322,0.00012236,2]
[399717269,1766634160211,-262.29501981,0.0001224,2]
[399717270,1766634162353,-209.75409672,0.0001224,2]
[399717271,1766634164390,-18.90190518,0.0001224,2]
[399717272,1766634164417,-160.75809482,0.0001224,2]
[399717273,1766634167159,-177.91307375,0.0001224,2]
[399717274,1766634168594,-161.32883143,0.0001224,2]
[399717275,1766634168620,-196.16973553,0.0001224,2]
[399717276,1766634170351,-303.83026447,0.0001224,2]
[399717277,1766634170377,-116.50973553,0.0001224,2]
[399717278,1766634171888,-275.6584545,0.0001224,2]
[399717279,1766634174831,-107.83180997,0.0001224,2]
[399717280,1766634174856,-93.9273661,0.0001224,2]
[399717281,1766634177730,-201.93541913,0.0001224,2]
[399717282,1766634179806,-204.13721477,0.0001224,2]
[399717283,1766634179831,-137.86105544,0.0001224,2]
[399717284,1766634182526,-174.77566897,0.00012239,2]
[399717285,1766634185238,-125.22433103,0.00012239,2]
[399717286,1766634185267,-32.77739876,0.0001224,2]
[399717287,1766634190956,-253.351569,0.00012239,2]
[399717288,1766634192147,-223.2732872,0.00012239,2]
[399717289,1766634194256,-314.78023879,0.00012239,2]
[399717290,1766634196400,-403.50834349,0.00012239,2]
[399717291,1766634200196,-5.08656152,0.00012239,2]
[399717292,1766634200221,-159.86110258,0.0001224,2]
[399717293,1766634202919,-90.13889742,0.0001224,2]
[399717294,1766634202948,-142.07624522,0.0001224,2]
[399717295,1766634203572,10000.01,0.00011894,2]
[399717296,1766634203595,10000.01,0.00011894,2]
[399717297,1766634203618,734.15486222,0.00011894,2]
[399717298,1766634203640,2240.51513778,0.00011894,2]
[399717299,1766634205175,-187.28530058,0.0001224,2]
[399717300,1766634205207,-48.26860693,0.0001224,2]
[399717301,1766634209359,-298.90825591,0.0001224,2]
[399717302,1766634209398,500.0,0.00012141,2]
[399717303,1766634213111,-152.82313716,0.0001224,2]
[399717304,1766634213138,-296.43326116,0.0001224,2]
[399717305,1766634215949,-221.74360168,0.0001224,2]
[399717307,1766634222169,-278.25639832,0.0001224,2]
[399717308,1766634222197,-14.61101204,0.0001224,2]
[399717309,1766634224210,-188.9557268,0.0001224,2]
[399717310,1766634224237,-7.336921,0.0001224,2]
[399717311,1766634225615,-293.45686372,0.0001224,2]
[399717312,1766634228321,-199.20621528,0.0001224,2]
[399717313,1766634228348,-33.83836542,0.0001224,2]
[399717314,1766634248119,-287.1549602,0.00012239,2]
[399717315,1766634248506,243.12070844,0.0001214,2]
[399717316,1766634250434,-12.8450398,0.00012239,2]
[399717317,1766634250460,-154.28278763,0.0001224,2]
[399717318,1766634252284,3486.7319,0.00012142,2]
[399717319,1766634252462,-166.66,0.0001224,2]
[399717320,1766634258486,6270.15739156,0.00012142,2]
[399717321,1766634258510,297.68350844,0.00012142,2]
[399717322,1766634276979,-162.8662351,0.00012178,2]
[399717323,1766634279268,-239.19545716,0.00012178,2]
[399717324,1766634280824,-159.44808783,0.00012178,2]
[399717325,1766634283667,-170.87836276,0.00012178,2]
[399717326,1766634286468,-202.617375,0.00012178,2]
[399717327,1766634296131,-10.70475515,0.00012178,2]
[399717328,1766634306966,-165.8939225,0.00012236,2]
[399717329,1766634309227,-226.81699666,0.00012236,2]
[399717330,1766634348157,392.710919,0.00012174,2]
[399717331,1766634353704,500.0,0.00011734,3]
[399717332,1766634381876,-175.38518518,0.00012236,2]
[399717333,1766634396091,999.0,0.00011596,3]
[399717334,1766634399343,258.13,0.000121,2]
[399717336,1766634420945,175.385185,0.00012174,2]
[399717337,1766634456982,-443.09729086,0.00012236,2]
[399717338,1766634478465,6692.3354,0.0001214,2]
[399717339,1766634503091,-250.81879259,0.00012174,2]
[399717340,1766634505878,-156.15921717,0.00012174,2]
[399717341,1766634507492,-36.11928124,0.00012174,2]
[399717342,1766634507516,-139.06716342,0.00012236,2]
[399717343,1766634509500,-201.20365773,0.00012236,2]
[399717344,1766634511022,-220.44174219,0.00012236,2]
[399717345,1766634516878,-336.23586509,0.00012236,2]
[399717346,1766634518397,-220.95525387,0.00012236,2]
[399717347,1766634525127,10000.01,0.0001214,2]
[399717348,1766634525154,1931.41341913,0.0001214,2]
[399717349,1766634525181,4671.92855691,0.0001214,2]
[399717350,1766634525208,4671.92855691,0.0001214,2]
[399717351,1766634525233,4671.92855691,0.0001214,2]
[399717352,1766634525262,4671.92855691,0.0001214,2]
[399717353,1766634525287,4671.92855691,0.0001214,2]
[399717354,1766634525312,4671.92855691,0.0001214,2]
[399717358,1766634585593,-150.0,0.00011415,2]
[399717359,1766634585623,-206.98092921,0.00012137,2]
[399717360,1766634585652,-250.0,0.00012138,2]
[399717361,1766634585682,-300.0,0.00012138,2]
[399717362,1766634585712,-300.0,0.00012139,2]
[399717363,1766634594650,-582.62451362,0.0001204,2]
[399717364,1766634603722,-300.0,0.00012139,2]
[399717365,1766634603752,-300.0,0.00012139,2]
[399717366,1766634603783,-1200.0,0.00012139,2]
[399717367,1766634606817,-4389.9383269,0.0001214,2]
[399717368,1766634612888,-10000.01,0.0001214,2]
[399717369,1766634631894,-603.84235597,0.00011979,2]
[399717370,1766634631908,-53.06474603,0.00011979,2]
[399717371,1766634631919,-5153.96064421,0.0001204,2]
[399717372,1766634631933,-357.87831592,0.0001204,2]
[399717373,1766634631946,-14139.36870041,0.0001204,2]
[399717374,1766634631960,-3681.56994553,0.0001204,2]
[399717375,1766634631973,-13206.39981648,0.0001204,2]
[399717376,1766634631986,-290.05642929,0.0001204,2]
[399717377,1766634632005,-2065.94529364,0.0001204,2]
[399717378,1766634632018,-2062.13091084,0.0001204,2]
[399717379,1766634632082,-642.93059852,0.0001204,2]
[399717380,1766634632096,-1159.00839995,0.0001204,2]
[399717381,1766634632109,-1613.9502996,0.0001204,2]
[399717382,1766634632124,-4328.06566314,0.0001204,2]
[399717395,1766634632458,-835.19021143,0.0001204,2]
[399717396,1766634632471,-567.05475244,0.0001204,2]
[399717397,1766634632485,-7029.17746039,0.0001204,2]
[399717398,1766634632499,-406.33173265,0.0001204,2]
[399717399,1766634632514,-780.71527075,0.0001204,2]
[399717400,1766634632550,-711.30247282,0.0001204,2]
[399717401,1766634632561,-27127.34297361,0.0001204,2]
[399717402,1766634632572,-311.91808557,0.00012139,2]
[399717403,1766634632584,-467.67310064,0.00012139,2]
[399717404,1766634632595,-500.0,0.00012139,2]
[399717405,1766634632606,-286034.16631054,0.0001214,2]
[399717406,1766634632620,-45397.55860445,0.0001214,2]
[399717407,1766634632633,-57107.19262728,0.0001214,2]
[399717408,1766634632646,-120431.12111189,0.0001214,2]
[399717409,1766634632659,-1254.41808677,0.0001214,2]
[399717410,1766634633100,-5554.73846656,0.0001214,2]
[399717411,1766634633114,-872.66531044,0.0001214,2]
[399717412,1766634633680,-726.65347006,0.0001214,2]
[399717413,1766634633936,-8614.86124748,0.0001214,2]
[399717414,1766634633948,-3045.52,0.0001214,2]
[399717415,1766634637964,-500.0,0.00012039,2]
[399717416,1766634637976,-346.33812054,0.00012039,2]
[399717417,1766634637988,-153.66187947,0.00012039,2]
[399717419,1766634638000,-500.0,0.00012039,2]
[399717420,1766634638013,-57.3769216,0.00012039,2]
[399717421,1766634638026,-442.6230784,0.00012039,2]
[399717422,1766634638035,-38.08929807,0.00012039,2]
[399717423,1766634638075,-461.91070193,0.00012039,2]
[399717424,1766634638086,-177.40818459,0.00012039,2]
[399717425,1766634638098,-322.59181541,0.00012039,2]
[399717426,1766634638109,-500.0,0.00012039,2]
[399717427,1766634638119,-500.0,0.00012039,2]
[399717428,1766634638129,-500.0,0.00012039,2]
[399717429,1766634638139,-500.0,0.00012139,2]
[399717430,1766634638150,-500.0,0.00012139,2]
[399717431,1766634638160,-278.60714155,0.00012139,2]
[399717432,1766634638171,-6044.68535445,0.0001214,2]